bitfinex/quotes_ETHUSD_20250430
["timestamp","ask_amount","ask_price","bid_price","bid_amount"]
[1745984289529,6.1,1805.0,1804.6,0.7657]
[1745984289870,0.74421428,1804.9,1804.6,0.7657]
[1745984292538,0.74421428,1804.9,1804.6,1.60770112]
[1745984292731,0.74421428,1804.9,1804.6,7.14902811]
[1745984292935,0.74421428,1804.9,1804.6,1.60770112]
[1745984294796,0.74421428,1804.9,1804.6,7.20445813]
[1745984294934,0.74421428,1804.9,1804.8,5.54078014]
[1745984295138,4.56,1805.3,1804.8,1.41431956]
[1745984295340,3.74658454,1805.2,1804.8,1.41431956]
[1745984295755,0.74658454,1805.2,1804.9,0.751]
[1745984297250,4.50588454,1805.2,1804.8,1.41431956]
[1745984297449,0.7593,1805.1,1804.5,5.50840095]
[1745984297664,3.0,1805.0,1804.5,5.50840095]
[1745984297885,3.74735465,1805.0,1804.5,5.50840095]
[1745984298359,3.74735465,1805.0,1804.5,5.10206407]
[1745984299785,3.74735465,1805.0,1804.5,1.374]
[1745984300647,3.74735465,1805.0,1804.5,0.824]
[1745984300852,0.7589,1804.9,1804.5,0.824]
[1745984301194,0.74676227,1804.8,1804.5,0.824]
[1745984301689,0.7589,1804.9,1804.5,0.824]
[1745984302164,0.74676227,1804.8,1804.5,0.824]
[1745984302485,0.7589,1804.9,1804.5,0.824]
[1745984302784,0.7589,1804.9,1804.5,6.36568832]
[1745984302985,0.74865852,1804.8,1804.5,1.95808545]
[1745984303384,0.7589,1804.9,1804.5,1.95808545]
[1745984303595,0.74865852,1804.8,1804.5,7.49975105]
[1745984304056,3.0,1805.0,1804.5,7.55516031]
[1745984304256,0.74865852,1804.7,1804.5,7.55516031]
[1745984304489,3.0,1805.0,1804.5,7.49975105]
[1745984304661,0.74865852,1804.6,1804.5,8.1051603]
[1745984305185,3.0,1805.0,1804.5,2.50808545]
[1745984305493,0.74865852,1804.9,1804.5,1.374]
[1745984308362,1.55785852,1804.9,1804.5,1.374]
[1745984312296,0.74865852,1804.9,1804.8,5.54078014]
[1745984312493,0.74865852,1804.9,1804.8,8.5689395]
[1745984312788,6.1,1805.4,1805.2,0.7731]
[1745984312991,0.68683997,1805.3,1805.2,6.8626524]
[1745984313288,6.1,1805.7,1805.2,8.56911176]
[1745984313495,0.68683997,1805.3,1805.2,3.02955936]
[1745984313657,3.0,1805.6,1805.2,7.71957407]
[1745984313860,0.68683997,1805.3,1805.2,7.71957407]
[1745984314365,3.0,1805.6,1805.2,7.71957407]
[1745984314560,0.68683997,1805.5,1805.2,7.71957407]
[1745984315391,0.68683997,1805.5,1805.2,2.18002167]
[1745984315559,0.68683997,1805.5,1805.2,0.7731]
[1745984320199,1.48783997,1805.5,1805.1,1.3389]
[1745984320498,1.48783997,1805.5,1805.1,0.7889]
[1745984321397,1.48783997,1805.5,1804.9,0.7609]
[1745984322494,3.0,1805.4,1804.9,0.7609]
[1745984322863,0.69035452,1805.3,1804.9,0.7609]
[1745984323202,3.0,1805.4,1804.9,0.7609]
[1745984323398,0.69035452,1805.3,1804.9,0.7609]
[1745984323606,3.0,1805.4,1804.9,0.7609]
[1745984323770,0.69035452,1805.3,1804.9,0.7609]
[1745984324096,3.0,1805.4,1804.9,0.7609]
[1745984324298,0.69035452,1805.2,1804.9,0.7609]
[1745984324501,3.0,1805.4,1804.9,0.7609]
[1745984325003,0.69035452,1805.3,1804.9,0.7609]
[1745984325301,3.0,1805.4,1804.9,0.7609]
[1745984325497,0.69035452,1805.2,1804.9,0.7609]
[1745984325704,3.0,1805.4,1804.9,0.7609]
[1745984326002,0.3,1805.3,1804.9,0.7609]
[1745984326203,0.69035452,1805.2,1804.9,0.7609]
[1745984329783,3.0,1805.4,1804.9,0.7609]
[1745984330103,0.69226102,1805.3,1804.9,0.7609]
[1745984330404,3.0,1805.4,1804.9,0.7609]
[1745984330606,0.69226102,1805.3,1804.9,0.7609]
[1745984330797,3.0,1805.4,1804.9,0.7609]
[1745984330990,0.69226102,1805.3,1804.9,0.7609]
[1745984331347,3.0,1805.4,1804.9,0.7609]
[1745984331507,0.69226102,1805.2,1804.9,0.7609]
[1745984331715,3.0,1805.4,1804.9,1.84684545]
[1745984332209,0.69226102,1805.3,1804.9,1.84684545]
[1745984332507,3.0,1805.4,1804.9,1.84684545]
[1745984332677,0.69226102,1805.2,1804.9,1.84684545]
[1745984332878,3.0,1805.4,1804.9,7.38731817]
[1745984333104,3.0,1805.4,1805.0,6.27888156]
[1745984333301,0.69226102,1805.3,1805.1,0.7873]
[1745984333675,3.0,1805.4,1805.1,0.7873]
[1745984333876,6.1,1805.5,1805.1,0.7873]
[1745984333877,0.69095078,1805.2,1805.1,8.03361409]
[1745984334575,6.1,1805.5,1805.1,8.03361409]
[1745984334806,0.69124859,1805.4,1805.1,8.08900627]
[1745984334994,0.69124859,1805.4,1805.1,9.47038454]
[1745984335209,0.69124859,1805.4,1805.1,3.93052981]
[1745984335819,0.69124859,1805.4,1805.1,2.49375936]
[1745984336023,0.69124859,1805.4,1805.1,0.7873]
[1745984336500,1.44814859,1805.4,1804.9,6.35786536]
[1745984336686,4.44814859,1805.4,1804.9,6.35786536]
[1745984346935,4.44814859,1805.4,1804.9,0.8175]
[1745984348242,4.44814859,1805.4,1804.8,4.558]
[1745984348529,0.7977,1805.3,1804.8,10.92053175]
[1745984348898,0.69178466,1805.2,1804.8,10.92053175]
[1745984349313,0.7977,1805.3,1804.8,10.92053175]
[1745984349518,0.69101035,1805.1,1804.8,10.92053175]
[1745984349719,0.7977,1805.3,1804.8,12.66385825]
[1745984349932,0.69101035,1805.0,1804.8,10.92053175]
[1745984350134,0.7977,1805.3,1804.8,6.36253175]
[1745984350303,0.69101035,1804.9,1804.8,6.91253175]
[1745984350503,0.7977,1805.3,1804.8,6.91253175]
[1745984350703,0.69101035,1804.9,1804.8,6.91253175]
[1745984350923,0.7977,1805.3,1804.8,2.1093265]
[1745984351122,1.46711035,1804.9,1804.6,3.72806407]
[1745984351409,0.68958063,1804.8,1804.6,3.72806407]
[1745984351736,0.7761,1804.9,1804.6,3.72806407]
[1745984352247,0.68862747,1804.8,1804.6,3.72806407]
[1745984352401,0.7761,1804.9,1804.6,4.65503425]
[1745984352603,0.68862747,1804.8,1804.6,4.65503425]
[1745984352799,0.7761,1804.9,1804.6,4.65503425]
[1745984353003,0.68862747,1804.8,1804.6,4.65503425]
[1745984353203,0.7761,1804.9,1804.6,4.65503425]
[1745984353437,0.68862747,1804.8,1804.6,0.92697018]
[1745984353638,0.7761,1804.9,1804.6,0.92697018]
[1745984353860,0.68862747,1804.8,1804.6,0.92697018]
[1745984354011,0.7761,1804.9,1804.6,0.92697018]
[1745984354216,0.68862747,1804.8,1804.6,0.92697018]
[1745984354416,0.7761,1804.9,1804.6,0.92697018]
[1745984354617,0.68862747,1804.8,1804.6,0.92697018]
[1745984354820,0.7761,1804.9,1804.6,0.92697018]
[1745984355009,0.68862747,1804.8,1804.6,0.92697018]
[1745984355209,0.7761,1804.9,1804.6,0.92697018]
[1745984355430,0.68862747,1804.8,1804.6,0.92697018]
[1745984355630,0.7761,1804.9,1804.5,0.55]
[1745984355940,0.68862747,1804.8,1804.5,0.55]
[1745984356249,0.7761,1804.9,1804.5,0.55]
[1745984356407,0.68862747,1804.8,1804.5,0.55]
[1745984356602,0.7761,1804.9,1804.5,0.55]
[1745984356808,0.68862747,1804.8,1804.4,0.55]
[1745984357019,0.7761,1804.9,1804.4,6.95103374]
[1745984357220,0.68767413,1804.8,1804.4,6.95103374]
[1745984357432,0.7761,1804.9,1804.4,1.40903894]
[1745984357628,0.68767413,1804.8,1804.4,1.40903894]
[1745984357834,0.7761,1804.9,1804.4,7.36621384]
[1745984358022,0.68767413,1804.8,1804.5,0.73662138]
[1745984358236,0.7761,1804.9,1804.5,0.73662138]
[1745984358422,0.68767413,1804.8,1804.5,0.73662138]
[1745984358630,0.7761,1804.9,1804.5,0.73662138]
[1745984358811,0.68767413,1804.8,1804.5,0.73662138]
[1745984359145,0.7761,1804.9,1804.5,0.73662138]
[1745984359546,0.68767413,1804.8,1804.5,0.73662138]
[1745984359845,0.7761,1804.9,1804.5,0.73662138]
[1745984360047,0.68767413,1804.8,1804.5,0.73662138]
[1745984360247,0.7761,1804.9,1804.5,0.73662138]
[1745984360451,0.68767413,1804.8,1804.5,0.73662138]
[1745984360847,0.7761,1804.9,1804.5,0.73662138]
[1745984361047,0.68767413,1804.8,1804.5,0.73662138]
[1745984361375,0.7761,1804.9,1804.5,0.73662138]
[1745984361543,0.68767413,1804.7,1804.5,0.73662138]
[1745984361738,0.7761,1804.9,1804.5,0.73662138]
[1745984361927,0.68767413,1804.6,1804.5,0.73662138]
[1745984362327,0.7761,1804.9,1804.4,1.82422367]
[1745984362547,0.68767413,1804.6,1804.4,1.82422367]
[1745984362836,0.68767413,1804.5,1804.4,1.82422367]
[1745984363038,0.7761,1804.9,1804.4,1.82422367]
[1745984363245,0.68767413,1804.8,1804.3,0.7918]
[1745984363546,0.818,1804.7,1804.3,0.7918]
[1745984363922,0.68767413,1804.6,1804.3,0.7918]
[1745984364222,0.818,1804.7,1804.3,0.7918]
[1745984364426,0.68767413,1804.6,1804.3,0.7918]
[1745984364638,0.818,1804.7,1804.3,9.11218113]
[1745984364955,0.818,1804.7,1804.3,9.11226764]
[1745984365451,0.68767413,1804.6,1804.3,3.56998554]
[1745984365652,0.7555,1804.5,1804.2,3.83306407]
[1745984365855,0.68421778,1804.4,1804.2,3.83306407]
[1745984366335,0.68421778,1804.4,1804.2,0.105]
[1745984370053,0.7737,1804.3,1804.2,0.105]
[1745984370213,1.45559277,1804.3,1804.2,0.105]
[1745984370754,10.55559277,1804.3,1804.2,0.105]
[1745984372648,15.11459277,1804.3,1804.2,0.105]
[1745984378156,10.55559277,1804.3,1804.2,0.105]
[1745984378344,15.11459277,1804.3,1804.2,0.105]
[1745984378553,14.34089277,1804.3,1804.2,0.105]
[1745984381667,6.78189277,1804.3,1804.2,0.105]
[1745984381958,9.78189277,1804.3,1804.2,0.105]
[1745984382951,3.68189277,1804.3,1804.2,0.105]
[1745984383331,3.68189277,1804.3,1804.2,0.9163]
[1745984383958,0.68189277,1804.3,1804.2,0.9163]
[1745984384165,0.68189277,1804.3,1804.2,1.4663]
[1745984384335,6.1,1804.6,1804.3,0.829]
[1745984384532,3.0,1804.5,1804.3,0.829]
[1745984386678,6.1,1804.6,1804.3,0.829]
[1745984386843,4.56,1804.7,1804.4,0.7752]
[1745984394746,0.68374095,1804.6,1804.4,0.7752]
[1745984395072,4.56,1804.7,1804.4,0.7752]
[1745984395275,0.68374095,1804.6,1804.4,0.7752]
[1745984395586,4.56,1804.7,1804.4,0.7752]
[1745984395788,0.68374095,1804.5,1804.3,0.7555]
[1745984395993,3.0,1804.6,1804.3,0.7555]
[1745984396154,0.68374095,1804.4,1804.3,0.7555]
[1745984396353,3.0,1804.6,1804.3,0.7555]
[1745984396554,0.68374095,1804.4,1804.3,0.7555]
[1745984396781,3.0,1804.6,1804.3,0.7555]
[1745984396993,0.68374095,1804.4,1804.3,0.7555]
[1745984397170,3.0,1804.6,1804.3,0.7555]
[1745984397377,0.68374095,1804.4,1804.3,0.7555]
[1745984397893,3.0,1804.6,1804.3,0.7555]
[1745984398081,0.68374095,1804.5,1804.3,0.7555]
[1745984409312,1.44394095,1804.5,1804.2,0.105]
[1745984410479,0.68374095,1804.5,1804.2,0.8797]
[1745984410679,3.0,1804.4,1804.2,0.8797]
[1745984411006,0.68129682,1804.3,1804.2,0.8797]
[1745984411407,3.0,1804.4,1804.2,0.8797]
[1745984411581,0.68111795,1804.3,1804.2,0.8797]
[1745984411781,0.68111795,1804.3,1804.2,1.52195956]
[1745984411982,4.559,1804.5,1804.2,1.52195956]
[1745984412203,0.68111795,1804.3,1804.2,0.8797]
[1745984412404,4.559,1804.5,1804.2,0.8797]
[1745984412606,0.68111795,1804.3,1804.2,0.8797]
[1745984412784,4.559,1804.5,1804.2,0.8797]
[1745984413290,0.68111795,1804.4,1804.2,0.8797]
[1745984415409,0.68111795,1804.4,1804.3,7.30419691]
[1745984415593,0.68111795,1804.4,1804.3,8.62747493]
[1745984415802,6.1,1804.7,1804.3,8.62747493]
[1745984415803,5.3878,1804.9,1804.5,0.8314]
[1745984415986,3.0,1804.8,1804.5,0.8314]
[1745984417319,6.1,1805.1,1804.7,6.33695074]
[1745984417629,6.1,1805.1,1804.8,1.18369507]
[1745984418208,6.1,1805.1,1804.8,0.55]
[1745984418937,6.9117,1805.1,1804.7,0.796]
[1745984419519,3.0,1805.0,1804.5,3.00825936]
[1745984419726,0.8062,1804.9,1804.5,0.7518]
[1745984419907,0.8062,1804.9,1804.3,7.79861327]
[1745984420096,0.8062,1804.9,1804.4,1.3611]
[1745984420526,3.0,1804.8,1804.4,1.3611]
[1745984421440,3.0,1804.8,1804.4,6.90307708]
[1745984422034,3.0,1804.8,1804.4,6.95832289]
[1745984422272,3.0,1804.8,1804.4,6.90290984]
[1745984422471,3.0,1804.8,1804.5,0.69029098]
[1745984422980,3.0,1804.8,1804.5,6.23194877]
[1745984423267,3.0,1804.8,1804.5,0.69029098]
[1745984424664,0.68463457,1804.7,1804.5,0.69029098]
[1745984425323,0.68463457,1804.7,1804.5,6.2318726]
[1745984425449,0.68463457,1804.7,1804.6,6.91608147]
[1745984425656,7.558,1805.0,1804.6,6.91608147]
[1745984425960,0.68469461,1804.9,1804.6,6.91608147]
[1745984426651,0.68469461,1804.9,1804.6,1.37468726]
[1745984426974,0.68469461,1804.9,1804.7,5.54106152]
[1745984427177,0.68469461,1804.9,1804.8,7.39788629]
[1745984427771,6.1,1805.1,1804.8,7.39788629]
[1745984427946,0.68469461,1804.9,1804.8,7.39788629]
[1745984428148,3.0,1805.2,1804.8,7.39788629]
[1745984428340,0.68612482,1804.9,1804.8,7.39788629]
[1745984429084,7.558,1805.4,1804.8,7.39788629]
[1745984429263,0.68612482,1805.3,1804.8,7.39772313]
[1745984430371,0.68612482,1805.3,1804.9,5.54038858]
[1745984430895,0.68612482,1805.2,1804.9,5.54038858]
[1745984431044,7.558,1805.4,1804.9,5.54038858]
[1745984431239,0.68612482,1805.3,1804.9,5.54038858]
[1745984431441,0.68612482,1805.3,1804.9,6.83419975]
[1745984431663,7.558,1805.4,1804.9,6.83419975]
[1745984431874,0.90311049,1805.3,1804.9,6.83419975]
[1745984432073,7.558,1805.4,1804.9,6.83419975]
[1745984432385,0.90311049,1805.3,1804.9,6.83419975]
[1745984432570,0.90311049,1805.3,1805.0,0.68341998]
[1745984432769,7.558,1805.4,1805.0,6.22353595]
[1745984432976,0.90311049,1805.2,1805.1,0.794]
[1745984433146,0.90311049,1805.2,1805.1,1.344]
[1745984433483,0.90328922,1805.2,1805.1,1.344]
[1745984433692,3.0,1805.4,1805.1,2.1007536]
[1745984433893,0.90328922,1805.3,1805.1,2.1007536]
[1745984434042,3.0,1805.4,1805.1,2.1007536]
[1745984434361,0.90328922,1805.3,1805.1,2.1007536]
[1745984434880,0.90328922,1805.2,1805.1,2.1007536]
[1745984435081,3.0,1805.4,1805.1,2.1007536]
[1745984435248,0.90328922,1805.3,1805.1,2.1007536]
[1745984435446,3.0,1805.4,1805.1,2.1007536]
[1745984435679,0.90328922,1805.3,1805.1,2.1007536]
[1745984435873,3.0,1805.4,1805.1,2.1007536]
[1745984436074,0.90328922,1805.3,1805.1,2.1007536]
[1745984436278,3.0,1805.4,1805.1,2.1007536]
[1745984436621,0.90328922,1805.3,1805.1,2.1007536]
[1745984436989,3.0,1805.4,1805.1,2.1007536]
[1745984437190,0.90328922,1805.2,1805.1,2.1007536]
[1745984437375,3.0,1805.4,1805.1,2.1007536]
[1745984437892,0.90328922,1805.3,1805.1,2.1007536]
[1745984438100,3.0,1805.4,1805.1,2.1007536]
[1745984438272,0.90579188,1805.3,1805.1,2.1007536]
[1745984438473,3.0,1805.4,1805.1,2.1007536]
[1745984439062,3.0,1805.4,1805.1,2.1007536]
[1745984439308,0.90579188,1805.3,1805.1,2.1007536]
[1745984439594,3.0,1805.4,1805.1,2.1007536]
[1745984439798,0.90579188,1805.2,1805.1,2.1007536]
[1745984440287,3.0,1805.4,1805.1,2.1007536]
[1745984440488,0.90579188,1805.3,1805.1,2.1007536]
[1745984440702,3.0,1805.4,1805.1,2.1007536]
[1745984440904,0.90579188,1805.3,1805.1,2.1007536]
[1745984441106,3.0,1805.4,1805.1,2.1007536]
[1745984441308,0.90579188,1805.3,1805.1,2.1007536]
[1745984441513,3.0,1805.4,1805.1,2.1007536]
[1745984441670,0.90579188,1805.3,1805.1,2.1007536]
[1745984441864,3.0,1805.4,1805.1,2.1007536]
[1745984442064,0.90579188,1805.3,1805.1,2.1007536]
[1745984442373,3.0,1805.4,1805.1,2.1007536]
[1745984442565,0.90579188,1805.2,1805.1,1.344]
[1745984442765,3.0,1805.4,1805.1,1.344]
[1745984442976,0.90579188,1805.2,1805.1,1.344]
[1745984443178,3.0,1805.4,1805.1,1.344]
[1745984443377,0.90579188,1805.2,1805.1,1.344]
[1745984443565,3.0,1805.4,1805.1,1.344]
[1745984443785,0.90579188,1805.2,1805.1,1.344]
[1745984444122,0.90579188,1805.2,1805.1,2.07392143]
[1745984444302,3.0,1805.4,1805.1,2.07392143]
[1745984444460,0.90579188,1805.3,1805.2,5.53951283]
[1745984444793,6.1,1805.5,1805.4,6.86443873]
[1745984445198,4.607,1805.9,1805.4,6.86443873]
[1745984445498,4.607,1805.9,1805.4,8.10479288]
[1745984446295,5.3679,1805.9,1805.4,8.10479288]
[1745984446670,5.3679,1805.9,1805.4,2.56585415]
[1745984447473,3.0,1805.8,1805.3,0.55]
[1745984448060,3.0,1805.8,1805.2,0.7832]
[1745984448362,0.7609,1805.7,1805.2,0.7832]
[1745984449402,4.607,1805.9,1805.4,0.7832]
[1745984449598,4.607,1805.9,1805.6,0.7832]
[1745984449992,4.607,1805.9,1805.6,6.32148732]
[1745984450302,0.05,1805.9,1805.7,0.63214873]
[1745984450506,0.05,1805.9,1805.8,0.7544]
[1745984453304,0.05,1805.9,1805.8,6.34748352]
[1745984453471,0.05,1805.9,1805.8,6.97538352]
[1745984453666,0.05,1805.9,1805.8,6.92001181]
[1745984454303,0.05,1805.9,1805.8,6.97537712]
[1745984454609,0.05,1805.9,1805.8,8.38378791]
[1745984454773,0.8833948,1805.9,1805.8,8.38378791]
[1745984454974,0.05,1805.9,1805.8,8.38378791]
[1745984455175,0.8833948,1805.9,1805.8,8.38378791]
[1745984455374,0.05,1805.9,1805.8,8.38378791]
[1745984455575,0.8833948,1805.9,1805.8,8.38378791]
[1745984455776,0.05,1805.9,1805.8,8.38378791]
[1745984455975,0.8833948,1805.9,1805.8,8.38378791]
[1745984456316,0.88783112,1805.9,1805.8,8.38378791]
[1745984458914,0.88783112,1805.9,1805.8,2.8460761]
[1745984459280,0.88783112,1805.9,1805.8,8.38378791]
[1745984460686,0.88783112,1805.9,1805.8,2.8460761]
[1745984460923,0.05,1805.9,1805.6,0.7714]
[1745984461081,0.83789105,1805.8,1805.6,6.30968361]
[1745984461281,0.05,1805.9,1805.7,0.05537513]
[1745984461481,0.83789105,1805.8,1805.7,5.59336025]
[1745984461714,0.05,1805.9,1805.6,8.01599924]
[1745984462008,0.05,1805.9,1805.7,6.39491883]
[1745984462381,0.05,1805.9,1805.8,0.55]
[1745984462583,0.05,1805.9,1805.8,1.3667]
[1745984463090,0.05,1805.9,1805.7,0.80159992]
[1745984463290,0.05,1805.9,1805.6,0.41386908]
[1745984463291,0.8227,1805.9,1805.5,5.53848162]
[1745984464483,0.05,1805.9,1805.6,6.86810323]
[1745984466417,0.05,1805.9,1805.5,0.55]
[1745984466638,0.05,1805.9,1805.5,6.08862529]
[1745984466916,0.05,1805.9,1805.5,6.51338895]
[1745984467107,0.05,1805.9,1805.6,0.6513389]
[1745984467506,0.05,1805.9,1805.6,11.72777138]
[1745984467823,0.05,1805.9,1805.7,5.53799122]
[1745984468122,0.84010989,1805.8,1805.7,5.53799122]
[1745984468425,0.05,1805.9,1805.6,6.97253273]
[1745984468584,0.05,1805.9,1805.7,1.24725327]
[1745984469147,0.84010989,1805.8,1805.7,1.24725327]
[1745984469326,0.05,1805.9,1805.7,1.24725327]
[1745984469534,0.84010989,1805.8,1805.7,1.24725327]
[1745984469739,0.05,1805.9,1805.7,1.24725327]
[1745984470035,0.84010989,1805.8,1805.7,1.24725327]
[1745984470438,0.05,1805.9,1805.7,1.24725327]
[1745984470829,0.84010989,1805.8,1805.7,1.24725327]
[1745984471030,0.84010989,1805.8,1805.7,6.78527176]
[1745984471322,0.05,1805.9,1805.8,5.53771181]
[1745984471541,0.89010989,1805.9,1805.8,6.77001017]
[1745984472545,0.89010989,1805.9,1805.8,1.23229836]
[1745984472747,0.89010989,1805.9,1805.7,0.69725327]
[1745984473154,1.68680989,1805.9,1805.6,6.18947314]
[1745984473308,0.8467,1805.9,1805.6,6.18947314]
[1745984473755,0.8467,1805.9,1805.6,0.6513389]
[1745984473930,0.84010989,1805.8,1805.6,0.6513389]
[1745984474103,0.8467,1805.9,1805.6,5.53831485]
[1745984474307,0.84010989,1805.8,1805.6,5.53831485]
[1745984474519,0.7967,1805.7,1805.0,3.72806407]
[1745984474720,6.8967,1805.7,1805.2,5.53943484]
[1745984475010,0.8236,1805.5,1805.2,5.53943484]
[1745984475255,0.8236,1805.5,1805.2,6.7023533]
[1745984475407,0.8236,1805.5,1805.2,6.70224747]
[1745984475739,0.83831163,1805.4,1805.2,6.70224747]
[1745984478220,0.83831163,1805.4,1805.2,6.70222708]
[1745984484147,0.83831163,1805.4,1805.2,12.24159326]
[1745984484323,0.83831163,1805.4,1805.2,6.70222708]
[1745984485152,0.83831163,1805.4,1805.2,6.70246045]
[1745984488257,0.83831163,1805.4,1805.2,6.70233083]
[1745984488443,0.83831163,1805.4,1805.3,6.20947863]
[1745984488630,0.83831163,1805.4,1805.3,7.55527863]
[1745984488956,3.0,1805.6,1805.4,5.53886795]
[1745984489180,0.83471415,1805.5,1805.4,5.53886795]
[1745984489636,0.83471415,1805.5,1805.3,7.55514294]
[1745984490155,0.83471415,1805.5,1805.3,6.75934294]
[1745984490331,0.83471415,1805.5,1805.2,5.53939115]
[1745984490524,1.58661415,1805.5,1805.2,5.53939115]
[1745984490941,1.58661415,1805.5,1805.1,6.36968864]
[1745984491151,1.58661415,1805.5,1805.1,5.53968864]
[1745984491466,1.58661415,1805.5,1805.1,5.53965244]
[1745984491633,1.58661415,1805.5,1805.1,6.7856184]
[1745984494344,1.58661415,1805.5,1805.1,5.53965244]
[1745984503945,0.7684,1805.3,1804.8,5.54060726]
[1745984504152,4.60305422,1805.2,1804.8,5.54077019]
[1745984504583,3.7684,1805.2,1804.8,5.54077019]
[1745984504783,0.83423444,1805.1,1804.8,5.54077019]
[1745984504948,3.7684,1805.2,1804.9,0.55407702]
[1745984505149,0.83423444,1805.1,1804.9,0.55407702]
[1745984505350,3.7684,1805.2,1804.9,0.55407702]
[1745984505670,0.83423444,1805.1,1804.9,0.55407702]
[1745984505985,3.7684,1805.2,1804.9,0.55407702]
[1745984506186,0.83423444,1805.1,1804.9,0.55407702]
[1745984506483,3.7684,1805.2,1804.7,6.30361388]
[1745984506781,0.83297492,1805.1,1804.7,6.30359215]
[1745984506962,3.7684,1805.2,1804.7,6.30359215]
[1745984507156,0.83297492,1805.1,1804.7,6.30359216]
[1745984507360,3.7684,1805.2,1804.7,6.30359216]
[1745984507583,0.83297492,1805.1,1804.8,6.17113317]
[1745984507783,3.7684,1805.2,1804.8,6.17113317]
[1745984507986,0.83297492,1805.1,1804.8,6.17113317]
[1745984508194,3.7684,1805.2,1804.8,6.17113317]
[1745984508490,0.83297492,1805.1,1804.8,6.17113317]
[1745984508864,3.7684,1805.2,1804.8,6.17113317]
[1745984509062,0.83297492,1805.0,1804.8,6.17113317]
[1745984509263,3.7684,1805.2,1804.8,6.17113317]
[1745984509465,0.83297492,1804.9,1804.8,6.17113317]
[1745984509656,3.7684,1805.2,1804.8,6.17113317]
[1745984509876,0.83297492,1804.9,1804.8,6.17113317]
[1745984510083,3.7684,1805.2,1804.8,6.17113317]
[1745984510285,0.83297492,1804.9,1804.8,6.17113317]
[1745984510796,3.7684,1805.2,1804.8,6.17113317]
[1745984510982,0.83297492,1805.1,1804.8,6.17113317]
[1745984511180,3.7684,1805.2,1804.8,6.17113317]
[1745984511396,0.83297492,1805.1,1804.8,6.17113317]
[1745984511563,3.7684,1805.2,1804.8,6.17113317]
[1745984511764,0.83297492,1805.1,1804.8,0.63035922]
[1745984511965,3.7684,1805.2,1804.8,0.63035922]
[1745984512258,0.83147542,1805.1,1804.7,5.54089216]
[1745984512795,0.83147542,1805.0,1804.7,5.54089216]
[1745984512973,3.7684,1805.2,1804.7,5.54089216]
[1745984513171,0.83147542,1805.1,1804.6,9.03540165]
[1745984513497,0.7884,1805.0,1804.6,5.54126032]
[1745984513684,0.7884,1805.0,1804.5,5.54152578]
[1745984514085,0.83147542,1804.9,1804.5,5.54152578]
[1745984514391,0.83147542,1804.9,1804.7,5.5410806]
[1745984514594,0.83147542,1804.9,1804.6,1.70645936]
[1745984514768,0.83147542,1804.9,1804.7,0.7628]
[1745984514971,0.7785,1805.1,1804.8,5.54078014]
[1745984515183,0.83147542,1805.0,1804.8,5.54078014]
[1745984515392,0.83147542,1805.0,1804.7,6.3037197]
[1745984515565,0.83147542,1805.0,1804.8,0.63037197]
[1745984517366,0.83147542,1805.0,1804.7,6.3037197]
[1745984517565,0.83147542,1805.0,1804.7,5.5409197]
[1745984518894,0.83147542,1805.0,1804.7,0.55]
[1745984519803,0.83147542,1805.0,1804.7,6.09095617]
[1745984521500,0.83147542,1805.0,1804.7,0.55]
[1745984522001,0.83147542,1805.0,1804.7,6.94838018]
[1745984523382,0.83147542,1805.0,1804.7,1.40729514]
[1745984524711,0.83147542,1805.0,1804.7,6.9483598]
[1745984526107,0.83147542,1805.0,1804.7,1.40729514]
[1745984526283,0.83147542,1805.0,1804.6,0.55]
[1745984526488,0.7974,1804.9,1804.6,0.55]
[1745984526889,0.8307555,1804.8,1804.6,0.55]
[1745984527284,0.7974,1804.9,1804.5,5.541534]
[1745984527594,0.7974,1804.9,1804.6,1.70645936]
[1745984527803,0.8307555,1804.8,1804.7,5.54108716]
[1745984527995,3.0,1805.2,1804.7,6.89908164]
[1745984528202,0.8307555,1805.1,1804.9,5.5404509]
[1745984528385,3.0,1805.2,1804.9,5.5404509]
[1745984528585,0.8307555,1805.1,1804.9,6.8192195]
[1745984528792,3.0,1805.2,1804.9,7.6050195]
[1745984528991,0.8307555,1805.1,1804.9,2.0645686]
[1745984529193,3.0,1805.2,1804.9,2.0645686]
[1745984529398,0.82973567,1805.1,1804.9,2.0645686]
[1745984529606,3.0,1805.2,1804.9,2.0645686]
[1745984529784,0.82973567,1805.1,1804.9,0.7858]
[1745984529984,3.0,1805.2,1804.9,0.7858]
[1745984530185,0.82973567,1805.1,1804.9,0.7858]
[1745984530387,3.0,1805.2,1804.9,0.7858]
[1745984530594,0.82973567,1805.1,1804.8,1.70645936]
[1745984530795,3.0,1805.2,1804.8,2.56724613]
[1745984530999,0.82973567,1805.1,1804.8,8.10799514]
[1745984531200,3.0,1805.2,1804.8,8.10799514]
[1745984531396,0.82973567,1805.1,1804.8,8.10799514]
[1745984531596,3.0,1805.2,1804.9,0.81079951]
[1745984531889,0.82973567,1805.1,1804.8,8.10799514]
[1745984532120,3.0,1805.2,1804.8,8.10799514]
[1745984532322,0.82973567,1805.1,1804.8,2.56724613]
[1745984532492,3.0,1805.2,1804.8,2.56724613]
[1745984532697,0.82973567,1805.1,1804.8,8.10798138]
[1745984532900,3.0,1805.2,1804.9,0.81079814]
[1745984533118,0.82973567,1805.1,1804.9,0.81079814]
[1745984533297,3.0,1805.2,1804.8,2.56724613]
[1745984533497,0.82973567,1805.1,1804.8,2.56724613]
[1745984533797,3.0,1805.2,1804.8,8.1080222]
[1745984533998,0.82973567,1805.1,1804.8,8.1080222]
[1745984534239,3.0,1805.2,1804.8,8.1080222]
[1745984534394,0.82991567,1805.0,1804.8,2.56724613]
[1745984534583,3.0,1805.2,1804.8,2.56724613]
[1745984534787,0.82991567,1805.1,1804.8,2.56724613]
[1745984535011,3.0,1805.2,1804.8,2.56724613]
[1745984535222,0.82991567,1805.1,1804.8,8.10801621]
[1745984535521,3.0,1805.2,1804.9,0.81080162]
[1745984535682,0.82991567,1805.1,1804.8,8.10801621]
[1745984535887,3.0,1805.2,1804.8,8.10801621]
[1745984536083,0.82991567,1805.1,1804.8,13.64859448]
[1745984536289,0.82991567,1805.1,1804.8,8.1078244]